bitfinex/quotes_SOLUSD_20250809
["timestamp","ask_amount","ask_price","bid_price","bid_amount"]
[1754768761208,0.03,182.22,182.21,3.95554969]
[1754768763298,6.4542593,182.22,182.21,3.95554969]
[1754768763699,6.4542593,182.22,182.17,5.714259]
[1754768763891,0.71,182.21,182.18,3.96121579]
[1754768764089,0.03,182.22,182.19,9.67547509]
[1754768764407,0.03,182.22,182.2,3.96121579]
[1754768764617,0.03,182.22,182.19,0.69]
[1754768764618,0.03,182.22,182.21,3.96121579]
[1754768764806,0.74,182.22,182.21,3.96121579]
[1754768765194,6.2278718,182.22,182.21,3.96154057]
[1754768765395,11.9421311,182.22,182.21,3.96292149]
[1754768765901,0.74,182.22,182.21,3.96292149]
[1754768766100,0.03,182.22,182.21,3.96292149]
[1754768769013,0.03,182.22,182.21,4.65292149]
[1754768769208,0.03,182.22,182.21,10.37158358]
[1754768769424,0.03,182.22,182.21,15.85975656]
[1754768770821,0.03,182.22,182.21,10.37158358]
[1754768771121,0.03,182.22,182.21,3.96744592]
[1754768773926,0.03,182.22,182.21,3.96790432]
[1754768774122,6.4542593,182.22,182.21,3.96790432]
[1754768774309,0.74,182.22,182.21,3.96790432]
[1754768775512,6.4542593,182.22,182.21,3.96790432]
[1754768776206,11.9421311,182.22,182.21,3.96790432]
[1754768776430,6.2278718,182.22,182.21,3.96790432]
[1754768776724,0.74,182.22,182.21,3.96790432]
[1754768776920,11.9421311,182.22,182.21,3.96790432]
[1754768777521,11.9421311,182.22,182.21,3.97216945]
[1754768777912,0.03,182.22,182.21,3.97216945]
[1754768778436,0.74,182.22,182.21,3.97216945]
[1754768778635,0.03,182.22,182.21,3.97216945]
[1754768778816,0.74,182.22,182.21,3.97216945]
[1754768779212,0.03,182.22,182.21,3.97216945]
[1754768780501,6.4542593,182.22,182.21,3.97216945]
[1754768780924,6.4542593,182.22,182.19,0.06]
[1754768781209,41.43,182.21,182.2,3.97407815]
[1754768781526,47.1442593,182.21,182.2,3.97407815]
[1754768782043,52.63243228,182.21,182.19,0.06]
[1754768782244,0.71,182.2,182.19,0.06]
[1754768782418,6.4242593,182.2,182.19,4.03371012]
[1754768782613,40.72,182.21,182.19,4.03371012]
[1754768782814,40.72,182.21,182.2,3.97371012]
[1754768783042,40.72,182.21,182.2,3.97270432]
[1754768783537,0.03,182.22,182.2,3.97270432]
[1754768783708,0.03,182.22,182.21,3.97270432]
[1754768788436,0.03,182.22,182.21,3.97371463]
[1754768788639,0.03,182.22,182.21,9.74797393]
[1754768789730,0.03,182.22,182.21,4.03371463]
[1754768791063,0.69,182.22,182.21,4.03371463]
[1754768791630,0.03,182.22,182.21,4.03371463]
[1754768794824,0.69,182.22,182.21,4.03371463]
[1754768795130,0.03,182.22,182.21,4.03371463]
[1754768795861,0.69,182.22,182.21,4.03371463]
[1754768796150,11.8921311,182.22,182.21,4.03371463]
[1754768797832,6.1778718,182.22,182.21,4.03371463]
[1754768798033,11.8921311,182.22,182.21,4.03371463]
[1754768801038,52.4521311,182.22,182.21,4.03371463]
[1754768803043,40.59,182.22,182.21,4.03371463]
[1754768803440,0.03,182.22,182.21,4.03371463]
[1754768805260,6.4042593,182.22,182.21,4.04436298]
[1754768805429,46.8842593,182.22,182.21,4.04436298]
[1754768805858,15.10621557,182.19,182.15,0.06]
[1754768806030,11.4285186,182.16,182.15,0.06]
[1754768806231,5.7142593,182.16,182.15,0.06]
[1754768806449,6.3742593,182.16,182.15,0.06]
[1754768807158,11.8639387,182.16,182.15,0.06]
[1754768808339,5.7142593,182.16,182.15,0.06]
[1754768808733,5.7142593,182.17,182.15,0.06]
[1754768808953,0.66,182.2,182.15,0.76]
[1754768809262,46.9142593,182.2,182.16,0.7]
[1754768809635,41.2,182.2,182.16,0.7]
[1754768809829,0.03,182.22,182.17,6.4142593]
[1754768810051,0.03,182.22,182.19,5.7142593]
[1754768810355,0.03,182.22,182.18,6.4142593]
[1754768810564,0.03,182.22,182.19,6.4142593]
[1754768810738,0.03,182.22,182.19,5.7142593]
[1754768810938,0.69,182.22,182.18,5.7142593]
[1754768811155,0.69,182.22,182.16,6.18945484]
[1754768811354,0.69,182.22,182.18,5.7142593]
[1754768811848,0.03,182.22,182.18,6.4142593]
[1754768812352,0.69,182.22,182.18,0.7]
[1754768812537,0.69,182.22,182.18,6.4142593]
[1754768813156,0.03,182.22,182.19,5.7142593]
[1754768813746,0.03,182.22,182.18,0.7]
[1754768813948,0.03,182.22,182.18,6.4142593]
[1754768814857,0.03,182.22,182.17,5.48931211]
[1754768815056,0.66,182.21,182.17,5.7142593]
[1754768815360,5.7142593,182.19,182.15,0.06]
[1754768815554,5.7142593,182.17,182.15,0.06]
[1754768816061,6.3742593,182.18,182.15,0.06]
[1754768816663,11.86336498,182.18,182.15,0.06]
[1754768817340,0.66,182.17,182.15,0.06]
[1754768817743,0.66,182.17,182.16,3.89919198]
[1754768818238,5.7142593,182.18,182.16,3.89919198]
[1754768818440,5.48877545,182.19,182.17,3.89919198]
[1754768818661,20.59499102,182.19,182.18,3.89919198]
[1754768818840,34.31692965,182.19,182.15,0.06]
[1754768819032,0.72,182.18,182.15,0.06]
[1754768819764,5.7142593,182.16,182.15,0.06]
[1754768820058,52.3039387,182.16,182.15,3.96075426]
[1754768820755,52.3039387,182.16,182.15,0.06]
[1754768820960,52.3039387,182.16,182.15,3.95600401]
[1754768822452,52.3039387,182.16,182.15,0.06]
[1754768822864,46.5896794,182.16,182.15,0.06]
[1754768823050,52.3039387,182.16,182.15,0.06]
[1754768823864,46.5896794,182.16,182.15,0.06]
[1754768824038,52.3039387,182.16,182.15,0.06]
[1754768824644,5.48935923,182.18,182.15,3.95210852]
[1754768824867,5.48935923,182.18,182.16,3.89123885]
[1754768825080,5.48935923,182.18,182.15,0.77]
[1754768825081,45.82935923,182.18,182.17,3.89123885]
[1754768825369,40.34,182.18,182.17,3.89123885]
[1754768826554,46.7742593,182.18,182.17,3.89123885]
[1754768826861,46.7742593,182.18,182.15,0.06]
[1754768827069,5.7142593,182.16,182.15,0.06]
[1754768827278,46.0342593,182.16,182.15,0.06]
[1754768827562,46.7542593,182.16,182.15,0.06]
[1754768828766,50.33069559,182.16,182.15,0.06]
[1754768829262,55.82037499,182.16,182.15,0.06]
[1754768830257,80.21728615,182.16,182.15,1e-08]
[1754768830647,15.10621557,182.15,182.13,0.06]
[1754768830966,26.0,182.12,182.09,0.06]
[1754768831160,81.04158072,182.12,182.1,3.89131539]
[1754768831360,81.76158072,182.12,182.09,0.06]
[1754768836755,71.67088513,182.12,182.09,0.06]
[1754768837064,80.96158072,182.12,182.09,0.06]
[1754768837456,81.68158072,182.12,182.09,0.06]
[1754768839368,26.0,182.12,182.09,0.06]
[1754768839568,40.2,182.12,182.1,0.71]
[1754768839763,49.49069559,182.12,182.09,0.06]
[1754768840079,50.21069559,182.12,182.09,0.06]
[1754768840255,40.92,182.12,182.09,0.06]
[1754768840571,50.21069559,182.12,182.09,0.06]
[1754768840954,55.70158072,182.12,182.09,0.06]
[1754768843476,54.98158072,182.12,182.09,0.06]
[1754768843676,45.69088513,182.12,182.09,0.06]
[1754768843975,0.03,182.17,182.11,0.77]
[1754768844177,40.28,182.16,182.12,13.17208239]
[1754768844361,40.28,182.16,182.13,0.71]
[1754768844568,40.28,182.16,182.13,10.00069559]
[1754768844764,40.28,182.16,182.14,0.71]
[1754768844967,45.76976735,182.16,182.12,0.71]
[1754768845178,45.76976735,182.16,182.13,3.88130273]
[1754768845856,40.28,182.16,182.13,3.88130273]
[1754768846262,40.28,182.16,182.13,4.59130273]
[1754768846556,40.28,182.16,182.13,10.00069559]
[1754768846759,0.03,182.17,182.15,9.29069559]
[1754768846965,0.03,182.17,182.16,13.88200583]
[1754768848287,0.03,182.17,182.16,19.37168523]
[1754768850573,0.03,182.17,182.16,10.08098964]
[1754768850901,0.03,182.17,182.16,19.37168523]
[1754768856292,0.03,182.17,182.16,45.37168523]
[1754768856798,0.03,182.17,182.16,36.08098964]
[1754768856971,0.03,182.17,182.16,41.77532417]
[1754768857993,0.03,182.17,182.16,36.08098964]
[1754768858209,0.03,182.17,182.16,41.06532417]
[1754768858509,0.03,182.17,182.16,41.76532417]
[1754768860895,0.03,182.17,182.16,41.1003652]
[1754768861100,0.03,182.17,182.16,41.8003652]
[1754768862195,0.74,182.17,182.16,3.91635127]
[1754768869505,0.03,182.17,182.16,3.91635127]
[1754768869896,0.74,182.17,182.16,3.91635127]
[1754768870289,0.74,182.17,182.14,3.91635127]
[1754768870505,0.74,182.17,182.15,3.91635127]
[1754768870806,0.74,182.17,182.16,3.91635127]
[1754768871109,0.74,182.17,182.14,9.40659155]
[1754768871299,0.74,182.17,182.15,3.91635127]
[1754768871506,0.74,182.17,182.16,3.91635127]
[1754768871699,0.74,182.17,182.13,5.69433453]
[1754768871700,0.74,182.17,182.15,3.91635127]
[1754768871916,0.03,182.17,182.16,3.91635127]
[1754768872511,6.43433453,182.17,182.12,40.14]
[1754768872701,6.40433453,182.16,182.13,3.91591818]
[1754768872900,0.71,182.15,182.14,3.91591818]
[1754768873509,0.03,182.17,182.14,15.80053139]
[1754768873706,0.03,182.17,182.15,10.31025271]
[1754768874016,0.03,182.17,182.16,3.91591818]
[1754768874602,0.03,182.17,182.16,10.31025271]
[1754768876860,0.03,182.17,182.16,15.79993211]
[1754768877737,0.03,182.17,182.16,15.79987334]
[1754768878242,0.03,182.17,182.16,15.09987334]
[1754768878919,0.03,182.17,182.16,15.79987334]
[1754768879851,0.03,182.17,182.16,15.09987334]
[1754768880347,0.03,182.17,182.16,3.91585941]
[1754768881050,0.7,182.17,182.16,3.91585941]
[1754768881622,6.39433453,182.17,182.16,3.91585941]
[1754768882035,11.88371258,182.17,182.16,3.91585941]
[1754768882427,0.7,182.17,182.16,3.91585941]
[1754768882746,2.04399108,182.18,182.16,3.91585941]
[1754768883058,5.48907673,182.18,182.17,3.91585941]
[1754768883218,11.18341126,182.18,182.11,0.06]
[1754768883424,31.69433453,182.12,182.11,0.06]
[1754768883648,71.75433453,182.12,182.11,0.06]
[1754768884039,77.24521966,182.12,182.11,0.06]
[1754768884956,77.91521966,182.12,182.11,0.06]
[1754768886462,93.02143523,182.12,182.11,0.06]
[1754768887749,93.02143523,182.12,182.11,1e-08]
[1754768887927,15.10621557,182.11,182.09,0.06]
[1754768888251,20.8005501,182.1,182.09,0.06]
[1754768888458,15.10621557,182.08,182.07,0.06]
[1754768888664,66.53488463,182.08,182.07,0.06]
[1754768888826,67.20488463,182.08,182.07,0.06]
[1754768889836,41.10621557,182.06,182.05,0.06]
[1754768890041,46.8005501,182.06,182.05,0.06]
[1754768890248,15.10621557,182.05,182.02,0.2]
[1754768890553,20.60041918,182.01,182.0,0.2]
[1754768890869,66.33475371,182.01,182.0,0.2]
[1754768891026,67.00475371,182.01,182.0,1e-08]
[1754768891227,26.0,181.98,181.96,0.2]
[1754768891455,40.08,181.97,181.96,0.2]
[1754768891663,45.77433453,181.97,181.96,0.2]
[1754768892757,40.08,181.97,181.96,0.2]
[1754768892928,54.88491727,181.97,181.96,0.2]
[1754768893750,55.55491727,181.97,181.96,0.2]
[1754768894555,45.55541133,181.97,181.96,0.2]
[1754768894753,55.53491727,181.97,181.96,0.2]
[1754768901361,54.86491727,181.97,181.96,0.2]
[1754768901855,54.86491727,181.97,181.96,0.91]
[1754768902432,55.53491727,181.97,181.96,0.2]
[1754768903252,54.86491727,181.97,181.96,0.2]
[1754768903640,55.53491727,181.97,181.96,0.2]
[1754768904559,54.86491727,181.97,181.96,0.2]
[1754768904860,55.53491727,181.97,181.96,0.2]
[1754768905057,54.86491727,181.97,181.96,0.2]
[1754768905261,55.53491727,181.97,181.96,0.2]
[1754768906754,54.86491727,181.97,181.96,0.2]
[1754768907361,55.53491727,181.97,181.96,0.2]
[1754768908845,70.64113284,181.97,181.96,0.2]
[1754768909872,45.55541133,181.97,181.96,0.2]
[1754768910276,54.86491727,181.97,181.96,0.2]
[1754768911776,49.36950594,181.97,181.96,0.89]
[1754768912074,54.86491727,181.97,181.96,0.89]
[1754768912252,40.06,181.97,181.96,0.89]
[1754768912964,49.36950594,181.97,181.96,0.2]
[1754768913165,55.52491727,181.97,181.96,0.2]
[1754768914759,51.92950388,181.97,181.96,0.2]
[1754768916164,51.26950388,181.97,181.96,0.2]
[1754768916354,51.92950388,181.97,181.96,0.2]
[1754768916554,67.03571945,181.97,181.96,1e-08]
[1754768916776,26.0,181.94,181.93,0.06]
[1754768916967,71.71409255,181.94,181.93,0.06]
[1754768917174,72.37409255,181.94,181.93,0.06]
[1754768917785,15.10621557,181.93,181.92,0.2]
[1754768917972,26.97692769,181.93,181.92,0.2]
[1754768920787,26.97692769,181.93,181.9,0.06]
[1754768920788,41.10621557,181.91,181.9,0.06]
[1754768920996,86.82030812,181.91,181.9,0.06]
[1754768921191,87.48030812,181.91,181.9,0.06]
[1754768921490,86.82030812,181.91,181.9,0.06]
[1754768921867,31.71409255,181.91,181.9,0.75]
[1754768922073,71.71409255,181.91,181.9,0.75]
[1754768922272,77.21131645,181.91,181.9,0.75]
[1754768923374,71.71409255,181.91,181.9,0.75]
[1754768923683,66.0,181.91,181.9,0.75]
[1754768923887,40.0,181.91,181.9,0.75]
[1754768925379,40.0,181.92,181.9,0.75]
[1754768926269,51.21120459,181.92,181.9,0.06]
[1754768926475,5.71409255,181.91,181.9,0.06]
[1754768926813,5.71409255,181.91,181.9,0.75]
[1754768927304,5.71409255,181.91,181.9,4.68714599]
[1754768928678,11.21131645,181.91,181.9,3.99714599]
[1754768929780,51.21131645,181.91,181.9,3.99714599]
[1754768930481,51.21131645,181.91,181.9,4.00796365]
[1754768936990,51.87131645,181.91,181.9,4.00796365]
[1754768938415,66.97753202,181.91,181.9,4.00796365]
[1754768938603,15.10621557,181.9,181.89,0.06]
[1754768938810,27.19440067,181.9,181.89,1e-08]
[1754768939113,26.0,181.88,181.87,0.06]
[1754768939286,71.71409255,181.88,181.87,1e-08]
[1754768939714,72.37409255,181.88,181.87,1e-08]
[1754768940307,77.87222318,181.88,181.87,1e-08]
[1754768940484,20.82030812,181.87,181.86,1e-08]
[1754768940812,41.10621557,181.85,181.77,0.88]
[1754768941020,5.71409255,181.78,181.77,0.88]
[1754768941207,45.71409255,181.78,181.77,0.88]
[1754768941520,26.0,181.84,181.77,0.88]
[1754768941820,26.0,181.84,181.78,0.68]
[1754768941821,5.71409255,181.82,181.78,0.68]
[1754768941982,40.0,181.81,181.78,0.68]
[1754768942183,5.71409255,181.81,181.78,0.68]
[1754768942493,45.71409255,181.81,181.79,0.68]
[1754768942682,5.71409255,181.8,181.77,0.2]
[1754768942885,5.71409255,181.78,181.77,0.88]
[1754768943089,40.0,181.79,181.78,0.68]
[1754768944179,5.71409255,181.82,181.78,0.68]
[1754768944512,40.0,181.81,181.78,0.68]
[1754768944716,40.0,181.81,181.77,5.91409255]
[1754768944885,40.0,181.81,181.79,0.68]
[1754768945285,40.0,181.81,181.8,0.68]
[1754768947822,40.0,181.84,181.8,11.8946426]
[1754768948117,40.0,181.84,181.83,5.71409255]
[1754768948291,40.0,181.84,181.83,6.39409255]
[1754768948490,40.0,181.84,181.83,0.68]
[1754768948887,40.0,181.84,181.81,0.68]
[1754768949092,40.0,181.84,181.82,0.68]
[1754768949287,40.0,181.84,181.83,0.68]
[1754768949513,40.0,181.84,181.83,6.39409255]
[1754768949718,5.49747631,181.91,181.83,6.39409255]
[1754768949903,40.0,181.91,181.87,5.71409255]
[1754768950216,40.0,181.91,181.88,0.68]
[1754768950515,5.71409255,181.9,181.86,0.68]
[1754768950708,5.71409255,181.9,181.87,3.86001914]
[1754768950896,46.37409255,181.91,181.87,0.68]
[1754768951220,45.71409255,181.91,181.88,0.68]
[1754768951521,46.37409255,181.91,181.86,6.39409255]
[1754768951808,45.71409255,181.91,181.87,10.25454772]
[1754768952008,40.0,181.91,181.88,6.39409255]
[1754768952212,40.0,181.91,181.88,5.71409255]
[1754768952403,40.0,181.91,181.89,0.68]
[1754768952712,40.0,181.91,181.87,6.39409255]
[1754768952916,40.66,181.91,181.87,6.39409255]
[1754768953096,40.0,181.91,181.86,5.4986747]
[1754768953302,40.0,181.91,181.87,10.25496309]
[1754768953512,40.0,181.91,181.88,4.54087054]
[1754768953713,40.0,181.91,181.88,0.68]
[1754768954395,40.0,181.91,181.89,0.68]
[1754768955427,0.03,181.92,181.9,10.25539956]
[1754768955618,0.03,181.92,181.9,6.39409255]
[1754768955825,0.03,181.92,181.9,0.68]
[1754768956314,0.03,181.92,181.88,0.68]
[1754768956519,6.40409255,181.92,181.89,3.86185034]
[1754768956820,0.03,181.92,181.9,4.54192701]
[1754768957115,0.03,181.92,181.91,3.86163178]
[1754768957324,0.03,181.92,181.91,10.25572433]
[1754768957999,0.03,181.92,181.91,4.54163178]
[1754768958403,0.03,181.92,181.91,10.25572433]
[1754768959295,0.03,181.92,181.91,4.54163178]
[1754768959797,0.03,181.92,181.91,3.86163178]
[1754768960201,0.03,181.92,181.91,4.54163178]
[1754768960897,0.03,181.92,181.91,10.25572433]
[1754768961500,0.03,181.92,181.91,10.03885568]
[1754768961705,0.03,181.92,181.91,15.75294823]
[1754768962115,0.03,181.92,181.91,10.25572433]
[1754768963392,0.03,181.92,181.91,15.75294823]
[1754768964688,0.03,181.92,181.91,10.03885568]
[1754768965014,0.03,181.92,181.91,15.75294823]
[1754768966098,0.03,181.92,181.91,30.8591638]
[1754768966824,0.03,181.92,181.91,56.8591638]
[1754768969130,0.03,181.92,181.91,96.8991638]
[1754768969634,0.03,181.92,181.91,186.4991638]
[1754768975747,0.03,181.94,181.93,26.0]
[1754768976036,0.03,181.95,181.94,15.10621557]
[1754768976253,1e-08,181.95,181.94,65.93157164]
[1754768976424,1e-08,181.95,181.94,65.3819399]
[1754768976738,1e-08,181.95,181.94,30.89825736]
[1754768977049,1e-08,181.95,181.94,70.87825736]
[1754768978142,1e-08,181.95,181.94,30.89825736]
[1754768978439,1e-08,181.95,181.94,70.15825736]
[1754768978635,1e-08,181.95,181.94,70.87825736]
[1754768980118,0.03,181.98,181.97,41.10621557]
[1754768980416,0.03,181.98,181.97,96.37603245]
[1754768980837,0.03,181.98,181.97,97.09603245]
[1754768981844,0.03,181.98,181.97,102.59144378]
[1754768983227,0.03,181.98,181.97,96.87735123]
[1754768983428,0.03,181.98,181.97,96.15735123]
[1754768984429,0.03,181.98,181.97,96.87735123]
[1754768986247,0.03,181.98,181.97,102.59144378]
[1754768986750,0.03,181.98,181.97,96.87735123]
[1754768987126,0.03,181.98,181.97,102.59144378]
[1754768987325,0.03,181.98,181.97,96.87735123]
[1754768988532,0.03,181.98,181.97,56.89735123]
[1754768988734,0.03,181.98,181.97,96.85735123]
[1754768988941,0.03,181.98,181.97,102.57144378]
[1754768989824,0.03,181.98,181.97,192.17144378]
[1754768990137,0.03,182.0,181.98,15.10621557]
[1754768990327,0.03,182.0,181.99,64.6419399]
[1754768990531,0.03,182.0,181.99,65.3619399]
[1754768991137,0.03,182.0,181.99,70.8567473]
[1754768991748,0.03,182.0,181.99,70.83762151]
[1754768992937,0.03,182.0,181.99,70.11762151]
[1754768993129,0.03,182.0,181.99,159.71762151]
[1754768993941,0.7,182.0,181.99,119.75762151]
[1754768994134,0.7,182.0,181.99,159.71762151]
[1754768994530,0.03,182.0,181.99,159.71762151]
[1754768996358,0.7,182.0,181.99,159.71762151]
[1754768996647,0.03,182.0,181.99,159.71762151]
[1754768997242,0.7,182.0,181.99,144.59140594]
[1754768997649,0.7,182.0,181.99,139.09659854]
[1754768998029,0.7,182.0,181.99,144.59140594]
[1754768999039,0.7,182.0,181.99,54.99140594]
[1754769000142,0.03,182.0,181.99,15.05140594]
[1754769000489,0.74,182.0,181.99,43.78250599]
[1754769000633,0.74,182.0,181.99,3.84250599]
[1754769002652,11.94859804,182.0,181.99,3.84250599]
[1754769004053,0.74,182.0,181.99,3.84250599]
[1754769004266,0.03,182.0,181.99,9.55659854]
[1754769004648,0.03,182.0,181.99,15.05140594]
[1754769005071,0.03,182.0,181.99,9.33731339]
[1754769005270,0.03,182.0,181.99,15.05140594]
[1754769005456,0.03,182.0,181.99,15.73140594]
[1754769008674,0.03,182.0,181.99,10.01731339]
[1754769008852,0.03,182.0,181.99,15.73140594]
[1754769009397,0.03,182.0,181.99,30.86860314]
[1754769009883,0.03,182.0,181.99,25.15451059]
[1754769010061,0.03,182.0,181.99,30.86860314]
[1754769013561,0.03,182.0,181.99,30.86972283]
[1754769014763,0.74,182.0,181.99,9.36941471]
[1754769014967,0.03,182.0,181.99,70.78972283]
[1754769016377,0.03,182.0,181.99,70.79162946]
[1754769017063,0.03,182.0,181.99,70.11162946]
[1754769017583,0.03,182.0,181.99,70.79162946]
[1754769020362,0.03,182.0,181.99,70.79502926]
[1754769020694,0.03,182.02,182.0,15.10621557]
[1754769020877,0.03,182.02,182.01,55.0082099]
[1754769021190,0.03,182.02,182.01,70.79442547]
[1754769021369,0.03,182.04,182.01,70.79442547]
[1754769021564,0.03,182.04,182.03,31.71409255]
[1754769021763,0.03,182.04,182.03,90.62022186]
[1754769022066,0.03,182.04,182.03,91.30022186]
[1754769022978,0.03,182.04,182.03,96.79382181]
[1754769025686,0.03,182.04,182.03,186.39382181]
[1754769026791,0.03,182.06,182.03,186.39382181]
[1754769027092,0.1,182.11,182.03,186.39382181]
[1754769027093,0.1,182.11,182.1,15.10621557]
[1754769027296,0.1,182.11,182.1,106.10022186]
[1754769027596,0.1,182.11,182.1,106.78022186]
[1754769027901,0.1,182.11,182.1,108.97784286]
[1754769028073,0.71,182.15,182.13,26.0]
[1754769028279,0.71,182.17,182.14,49.49400629]
[1754769028477,0.03,182.19,182.16,5.71409255]
[1754769028680,0.03,182.19,182.17,9.59400629]
[1754769029077,0.03,182.19,182.17,30.18959991]
[1754769030376,0.03,182.19,182.17,24.47550736]
[1754769030697,0.03,182.19,182.17,30.18959991]
[1754769031479,0.74,182.18,182.17,70.06959991]
[1754769031690,0.74,182.18,182.17,30.18959991]
[1754769031995,0.74,182.18,182.17,70.06959991]
[1754769032496,0.74,182.18,182.17,64.58022186]
[1754769033578,0.74,182.18,182.17,64.64423934]
[1754769034281,0.03,182.18,182.17,64.64423934]
[1754769034487,0.03,182.18,182.17,58.93014679]
[1754769035087,0.03,182.18,182.17,64.64423934]
[1754769036078,0.03,182.18,182.17,64.62423934]
[1754769036581,0.03,182.18,182.17,64.61947967]
[1754769039605,0.03,182.18,182.17,70.77885772]
[1754769040090,0.03,182.18,182.17,70.10885772]
[1754769040583,0.03,182.18,182.17,64.61947967]
[1754769042102,0.03,182.18,182.17,60.66030812]
[1754769042302,0.03,182.18,182.17,64.59337808]
[1754769042709,0.03,182.18,182.17,70.08275613]
[1754769043498,0.03,182.18,182.17,64.59337808]
[1754769044325,0.03,182.18,182.17,70.08275613]
[1754769045328,0.03,182.18,182.17,70.75275613]
[1754769045684,0.03,182.18,182.17,70.08275613]
[1754769046293,0.03,182.18,182.17,64.36866358]
[1754769046492,0.03,182.18,182.17,70.08275613]
[1754769047725,0.03,182.18,182.17,66.14968617]
[1754769047929,0.03,182.18,182.17,3.93319601]
[1754769048214,0.03,182.18,182.17,65.26350413]
[1754769048821,0.03,182.18,182.17,64.59350413]
[1754769049214,0.74,182.18,182.17,43.77319601]
[1754769049395,0.74,182.18,182.17,49.48728856]
[1754769049802,0.74,182.18,182.17,3.93319601]
[1754769050008,0.74,182.18,182.17,43.75319601]
[1754769050799,0.74,182.18,182.17,3.93319601]
[1754769051120,0.74,182.18,182.17,39.82]
[1754769051305,0.74,182.18,182.17,3.93749472]
[1754769051506,0.74,182.18,182.16,43.75749472]
[1754769051702,0.74,182.18,182.17,3.93749472]
[1754769052020,0.03,182.18,182.17,3.93749472]
[1754769052404,0.74,182.18,182.17,3.93749472]
[1754769054120,0.74,182.18,182.16,43.75749472]
[1754769054300,0.03,182.18,182.17,3.93749472]
[1754769054822,0.74,182.18,182.17,3.93749472]
[1754769056494,0.03,182.18,182.17,3.93749472]
[1754769057229,0.03,182.18,182.17,43.73749472]
[1754769058220,0.03,182.18,182.17,43.74408525]
[1754769061205,0.03,182.18,182.17,43.76825539]
[1754769062006,0.03,182.18,182.17,3.96825539]
[1754769062220,0.69,182.18,182.17,3.96825539]
[1754769063426,6.17907673,182.18,182.17,3.96825539]
[1754769063635,11.89316928,182.18,182.17,3.96825539]
[1754769066808,6.17907673,182.18,182.17,3.96825539]
[1754769067009,11.89316928,182.18,182.17,3.96825539]
[1754769068213,31.32995367,182.18,182.08,0.68]
[1754769068414,5.71409255,182.11,182.08,0.68]
[1754769069034,6.37409255,182.11,182.08,0.68]
[1754769069425,6.37409255,182.11,182.07,39.84]
[1754769069626,6.37409255,182.11,182.09,0.06]
[1754769070113,6.37409255,182.1,182.09,0.06]
[1754769070537,5.71409255,182.1,182.09,0.06]
[1754769071741,6.37409255,182.1,182.09,0.06]
[1754769072549,11.86558074,182.1,182.09,0.06]
[1754769073744,5.71409255,182.1,182.09,0.06]
[1754769074332,6.37409255,182.1,182.09,0.06]
[1754769075448,5.71409255,182.11,182.09,0.06]
[1754769075630,11.86532068,182.11,182.09,0.06]
[1754769076539,6.37409255,182.1,182.09,0.06]
[1754769078728,11.86558074,182.1,182.09,0.06]
[1754769079448,6.37409255,182.1,182.09,0.06]
[1754769080239,11.86558074,182.1,182.09,0.06]
[1754769081448,5.71409255,182.1,182.09,0.06]
[1754769081650,5.71409255,182.1,182.09,3.95512069]
[1754769081825,65.76,182.14,182.09,4.63512069]
[1754769082026,6.37409255,182.13,182.1,3.89450702]
[1754769082622,5.71409255,182.12,182.09,0.74]
[1754769082854,5.71409255,182.12,182.1,3.89432137]
[1754769083039,5.71409255,182.12,182.09,0.74]
[1754769083535,6.37409255,182.13,182.1,4.57391189]
[1754769083842,0.66,182.13,182.1,0.68]
[1754769084453,6.37409255,182.13,182.1,0.68]